fUSD/lending_fUSD_20250402
["ID","MTS","AMOUNT","RATE_DAILY","PERIOD"]
[357041256,1743615045827,-537.02500692,0.0002985,2]
[357041261,1743615248294,1724.886226,7.945e-05,2]
[357041282,1743615700524,157.0,0.00032,120]
[357041283,1743615723481,151.00000001,0.00034688,30]
[357041284,1743615726024,771.60121939,0.00034688,30]
[357041285,1743615761827,153.99,0.00013699,2]
[357041296,1743616010141,-252.64,0.00026849,2]
[357041297,1743616010163,-150.0,0.00027017,2]
[357041298,1743616010185,-350.0,0.00027185,12]
[357041299,1743616010207,-181.1267899,0.00029434,2]
[357041300,1743616010229,-350.0,0.00029534,12]
[357041301,1743616010250,-150.0,0.00029534,2]
[357041302,1743616010271,-350.0,0.00029534,12]
[357041303,1743616010292,-150.0,0.00029534,2]
[357041304,1743616010313,-181.1267899,0.00029749,2]
[357041305,1743616010335,-2373.00209291,0.0002985,2]
[357041306,1743616032095,-737.53472863,0.00026849,2]
[357041307,1743616032117,-124.68466971,0.0002985,2]
[357041308,1743616048089,-1016.42080807,0.0002985,2]
[357041309,1743616054109,-2089.94377067,0.0002985,2]
[357041310,1743616054132,-315.18176145,0.00032546,2]
[357041311,1743616054154,-1359.4778113,0.00032624,2]
[357041312,1743616054177,-152.51049212,0.00032646,2]
[357041318,1743616230040,151.43,0.00026849,2]
[357041321,1743616231655,-322.83442247,0.00032482,2]
[357041322,1743616231666,-540.3519349,0.00032482,2]
[357041323,1743616231854,-95.80215534,0.00032482,2]
[357041324,1743616231865,-1305.90340629,0.00032482,2]
[357041325,1743616231875,-100.12950788,0.00032646,2]
[357041326,1743616231884,-350.0,0.0003274,12]
[357041327,1743616231893,-150.0,0.0003274,2]
[357041328,1743616231903,-261.18805609,0.00032811,2]
[357041329,1743616231922,-632.94,0.00032811,2]
[357041330,1743616231934,-309.69450853,0.00032811,2]
[357041331,1743616231945,-723.08598451,0.00032811,2]
[357041332,1743616231956,-576.53974584,0.00032811,2]
[357041333,1743616231969,-1322.22029579,0.00032811,2]
[357041334,1743616231989,-539.55227005,0.00032811,2]
[357041335,1743616232001,-2450.000002,0.00032811,2]
[357041336,1743616232012,-856.84803041,0.00032811,2]
[357041337,1743616232025,-1568.06661662,0.00032811,2]
[357041338,1743616232040,-741.66842505,0.00032811,2]
[357041339,1743616232051,-2232.82259904,0.00032811,2]
[357041340,1743616232067,-4790.43246477,0.00032811,2]
[357041341,1743616232077,-350.0,0.00032907,12]
[357041342,1743616232086,-150.0,0.00032907,2]
[357041343,1743616232095,-844.01225995,0.00033052,2]
[357041415,1743616237523,-780.03774005,0.00033052,2]
[357041416,1743616237536,-1260.73,0.00033052,2]
[357041417,1743616237548,-150.99,0.00033052,2]
[357041418,1743616237562,-7.98725995,0.00033052,2]
[357041419,1743616237579,-278.1174902,0.00033052,2]
[357041420,1743616237593,-2347.43524985,0.00033052,2]
[357041421,1743616237607,-247.2,0.00033168,2]
[357041422,1743616237619,-5918.59,0.00033168,10]
[357041423,1743616237632,-999.99,0.00033168,2]
[357041424,1743616237645,-150.0,0.00033168,7]
[357041425,1743616237658,-250.0,0.00033307,2]
[357041426,1743616237670,-315.18176143,0.00033398,2]
[357041427,1743616237683,-187.15,0.00033413,120]
[357041428,1743616237695,-2000.0,0.00033448,2]
[357041429,1743616237707,-414.01512674,0.0003409,2]
[357041430,1743616237720,-691.582,0.00034102,37]
[357041431,1743616237731,-150.0,0.00034102,2]
[357041432,1743616237743,-315.18176143,0.0003425,2]
[357041433,1743616237756,-365.29098221,0.00034319,2]
[357041434,1743616237768,-1600.0,0.00034339,2]
[357041435,1743616237780,-268.0,0.00034339,2]
[357041436,1743616237793,-270.0,0.00034339,7]
[357041437,1743616237805,-414.01512674,0.0003434,2]
[357041438,1743616237817,-25899.67164281,0.0003434,2]
[357041439,1743616237832,-2052.78549733,0.0003434,2]
[357041441,1743616237858,-580.16856798,0.0003434,2]
[357041444,1743616237873,-455.12410894,0.0003434,2]
[357041446,1743616237888,-4788.89372744,0.0003434,2]
[357041449,1743616237900,-22034.62334092,0.0003435,2]
[357041451,1743616237912,-150.07,0.00034368,120]
[357041453,1743616237926,-150.0,0.00034548,10]
[357041456,1743616237938,-25652.7824,0.00034559,2]
[357041458,1743616237950,-110.87213897,0.00034559,2]
[357041461,1743616237964,-1274.20326103,0.00034559,2]
[357041463,1743616237973,-262.68,0.00034559,2]
[357041464,1743616237983,-444.66622449,0.00034559,2]
[357041467,1743616237995,-87.99697551,0.00034559,2]
[357041469,1743616238004,-584.92502666,0.00034588,2]
[357041488,1743616238013,-337.23032032,0.0003464,2]
[357041492,1743616238196,-164.99533911,0.0003464,2]
[357041494,1743616238205,-504.18759803,0.0003464,2]
[357041496,1743616238215,-500.0,0.0003464,5]
[357041498,1743616238224,-256.1269139,0.00034654,2]
[357041500,1743616238234,-2929.69014895,0.00034654,2]
[357041502,1743616238248,-286.85471901,0.00034654,2]
[357041505,1743616238263,-268.25522138,0.00034654,2]
[357041512,1743616238336,-283.80535398,0.00034654,2]
[357041676,1743616239896,-471.8592,0.00034588,2]
[357041678,1743616239905,-930.33765068,0.00034654,2]
[357041680,1743616239915,-1191.9269517,0.00034654,2]
[357041682,1743616239923,-178.7011488,0.00034659,55]
[357041684,1743616239933,-150.0,0.00034659,2]
[357041686,1743616239943,-3493.65195365,0.0003466,30]
[357041688,1743616239952,-160.21,0.00034678,3]
[357041690,1743616239961,-278.99071299,0.00034687,7]
[357041692,1743616239970,-229.80528103,0.00034687,7]
[357041694,1743616239980,-2355.95148561,0.00034688,2]
[357041696,1743616239990,-374.16802104,0.00034688,2]
[357041699,1743616240000,-1465.62117248,0.00034688,2]
[357041701,1743616240010,-1029.99856364,0.00034688,2]
[357041703,1743616240020,-4834.18558286,0.00034688,2]
[357041704,1743616240029,-30679.2202665,0.00034688,2]
[357041707,1743616240045,-2582.3108022,0.00034688,2]
[357041715,1743616240110,-509.862563,0.00034688,2]
[357041970,1743616243718,-26296.57968976,0.00034688,2]
[357041971,1743616243727,-4471.60685946,0.00034688,2]
[357041972,1743616243738,-1830.52568432,0.00034688,2]
[357041973,1743616243748,-1113.85692446,0.00034688,2]
[357041974,1743616243757,-14016.62970539,0.00034688,2]
[357041975,1743616243767,-219.55812226,0.00034688,2]
[357041976,1743616243777,-10163.33905741,0.00034688,2]
[357041977,1743616243787,-8115.49760594,0.00034688,2]
[357041978,1743616243797,-1699.78786418,0.00034688,2]
[357041979,1743616243807,-1425.68503621,0.00034688,2]
[357041980,1743616243815,-5376.69774694,0.00034688,2]
[357041981,1743616243824,-202.02337148,0.00034688,2]
[357041982,1743616243834,-281.6475134,0.00034688,2]
[357041983,1743616243844,-5662.4988337,0.00034688,2]
[357041984,1743616243854,-748.96889339,0.00034688,2]
[357041985,1743616243863,-1009.59897845,0.00034688,2]
[357041986,1743616243873,-1102.56924828,0.00034688,2]
[357041987,1743616243883,-162.91,0.00034688,2]
[357041988,1743616243892,-161.10722204,0.00034688,2]
[357041989,1743616243902,-2165.00385667,0.00034688,2]
[357041990,1743616243912,-150.0,0.00034688,2]
[357041991,1743616243922,-304.91833514,0.00034688,2]
[357041992,1743616243932,-150.0,0.00034688,2]
[357041993,1743616243942,-153.79694517,0.000347,5]
[357041994,1743616243952,-500.0,0.000347,5]
[357041995,1743616243962,-151.43,0.00034716,2]
[357041996,1743616243972,-1000.0,0.00034762,2]
[357041997,1743616243981,-450.0,0.00035,2]
[357041998,1743616243990,-166.21,0.00035,2]
[357041999,1743616244000,-474.47,0.0003541,2]
[357042000,1743616244010,-150.89,0.00035616,2]
[357042001,1743616244020,-350.0,0.00035911,12]
[357042002,1743616244030,-150.0,0.00035911,2]
[357042003,1743616244039,-584.92502663,0.00036156,2]
[357042004,1743616244049,-500.0,0.00036959,2]
[357042005,1743616244058,-500.0,0.00037,2]
[357042006,1743616244068,-584.92502663,0.00037724,2]
[357042007,1743616244077,-220.06,0.00038443,2]
[357042008,1743616244086,-252.64,0.00038443,2]
[357042009,1743616244096,-150.07,0.00038846,120]
[357042010,1743616244107,-187.15,0.00038982,120]
[357042011,1743616244207,-550.0,0.00039,2]
[357042012,1743616244216,-1000.0,0.00039107,2]
[357042013,1743616244225,-584.92502663,0.00039292,2]
[357042014,1743616244235,-180.83379984,0.0003979,2]
[357042015,1743616244245,-3520.9837165,0.0003988,2]
[357042016,1743616244349,-1654.64527478,0.0003988,2]
[357042017,1743616244552,-7547.52098339,0.0003988,2]
[357042043,1743616245576,-360.08234564,0.0003988,2]
[357042046,1743616245588,-1000.0,0.0003988,2]
[357042048,1743616245628,-112.93564528,0.0003988,2]
[357042049,1743616245683,-600.86929527,0.0003988,2]
[357042050,1743616245740,-379.3,0.0003988,2]
[357042051,1743616245793,-6790.23692,0.0003988,2]
[357042052,1743616245847,-327.983998,0.0003988,2]
[357042053,1743616245858,-832.4585784,0.0003988,2]
[357042054,1743616245870,-1385.64064024,0.0003988,2]
[357042055,1743616245881,-766.24272863,0.0003988,2]
[357042056,1743616245900,-20156.54161605,0.0003988,2]
[357042057,1743616245911,-1729.20659799,0.0003988,2]
[357042058,1743616245956,-52835.35165883,0.0003988,2]
[357042059,1743616245965,-978.46759192,0.0003989,2]
[357042060,1743616245975,-187.897281,0.0003999,3]
[357042061,1743616245984,-150.89,0.00040068,2]
[357042062,1743616245993,-859.69813693,0.00040119,5]
[357042063,1743616246002,-2000.0,0.00040538,120]
[357042064,1743616246011,-1566.52,0.00040632,2]
[357042065,1743616246021,-444.31,0.00040632,2]
[357042066,1743616246030,-584.92502663,0.0004086,15]
[357042067,1743616246039,-978.46759192,0.00040869,15]
[357042068,1743616246050,-600.0,0.00041,2]
[357042069,1743616246059,-172.0,0.00041,14]
[357042070,1743616246068,-978.46759192,0.00041848,15]
[357042071,1743616246077,-584.92502663,0.00042428,15]
[357042072,1743616246086,-151.43,0.00042583,2]
[357042073,1743616246096,-978.46759192,0.00042827,15]
[357042074,1743616246105,-250.0,0.0004292,2]
[357042075,1743616246114,-650.0,0.00043,2]
[357042076,1743616246123,-592.63575534,0.00043297,2]
[357042077,1743616246135,-150.07,0.00043324,120]
[357042078,1743616246144,-1000.0,0.00043452,2]
[357042079,1743616246153,-978.46759192,0.00043806,15]
[357042080,1743616246162,-584.92502663,0.00043996,15]
[357042081,1743616246171,-220.06,0.00044239,2]
[357042082,1743616246181,-252.64,0.00044239,2]
[357042083,1743616246190,-247.2,0.00044401,2]
[357042084,1743616246199,-150.89,0.00044521,2]
[357042085,1743616246208,-187.15,0.00044551,120]
[357042086,1743616246216,-1048.11,0.00044552,2]
[357042087,1743616246226,-2813.2314176,0.00044717,2]
[357042088,1743616246235,-978.46759192,0.00044784,15]
[357042089,1743616246243,-187.897281,0.00044957,3]
[357042090,1743616246253,-151.0,0.00045,120]
[357042091,1743616246262,-700.0,0.00045,2]
[357042092,1743616246271,-151.0,0.00045,120]
[357042093,1743616246281,-866.2165555,0.00045,120]
[357042094,1743616246290,-635.42168677,0.00045469,8]
[357042095,1743616246299,-584.92502663,0.00045564,15]
[357042096,1743616246308,-978.46759192,0.00045763,15]
[357042097,1743616246317,-194.16,0.00045764,120]
[357042098,1743616246326,-1624.05,0.00046273,2]
[357042099,1743616246335,-636.43270068,0.0004637,18]
[357042100,1743616246345,-273.0,0.000464,7]
[357042101,1743616246354,-388.9,0.00046451,2]
[357042102,1743616246363,-388.9,0.00046463,2]
[357042103,1743616246371,-157.89,0.0004647,2]
[357042104,1743616246381,-393.7,0.0004647,2]
[357042105,1743616246390,-200.0,0.0004647,2]
[357042106,1743616246399,-6479.5040735,0.0004647,2]
[357042126,1743616617154,500.0,0.00034689,120]
[357042127,1743616626860,499.99,0.00034689,120]
[357042128,1743616654021,500.0,0.00032,120]
[357042129,1743616660372,500.0,0.00032,120]
[357042130,1743616825734,-151.0,0.00015,2]
[357042147,1743616963258,-8.461143,0.00015,2]
[357042148,1743616963282,-141.538857,0.00020284,2]
[357042150,1743617225124,-150.0,0.00022312,2]
[357042151,1743617225145,-194.72829509,0.00023492,2]
[357042152,1743617225166,-150.0,0.00023592,2]
[357042153,1743617225186,-150.0,0.00026624,2]
[357042154,1743617225207,-286.64579294,0.00026973,2]
[357042155,1743617350149,-1290.08446526,0.00026973,2]
[357042156,1743617350171,-150.0,0.00026986,2]
[357042157,1743617350193,-250.0,0.00027,2]
[357042158,1743617350215,-500.0,0.00027,2]
[357042159,1743617350236,-500.0,0.00027,2]
[357042160,1743617350258,-172.28160039,0.00027,2]
[357042161,1743617350280,-367.63888464,0.00027113,2]
[357042162,1743617350302,-150.0,0.00027806,2]
[357042163,1743617350323,-365.0,0.00029,2]
[357042164,1743617350511,-300.0,0.00029,2]
[357042165,1743617350533,-150.0,0.0002967,2]
[357042166,1743617350555,-350.0,0.00031,2]
[357042167,1743617350577,-350.0,0.000319,12]
[357042168,1743617350599,-400.0,0.00032833,2]
[357042169,1743617350620,-142.17797066,0.00032834,10]
[357042170,1743617353090,-216.5056797,0.00032834,10]
[357042171,1743617355105,-5758.14634964,0.00032834,10]
[357042172,1743617355127,-400.0,0.00033,2]
[357042173,1743617355148,-159.461143,0.0003375,2]
[357042174,1743617355170,-16084.0564,0.000344,2]
[357042175,1743617355192,-365.24541371,0.000345,2]
[357042176,1743617355214,-6228.741,0.00034588,2]
[357042177,1743617355236,-203.6918,0.00034588,2]
[357042178,1743617355258,-855.0,0.00034688,2]
[357042179,1743617355280,-500.0,0.00034688,7]
[357042180,1743617355301,-369.92839531,0.00034688,7]
[357042181,1743617355323,-5363.90039379,0.00034689,30]
[357042186,1743617431732,-191.55,0.00026849,2]
[357042187,1743617431742,-150.0,0.00029534,2]
[357042188,1743617431752,-150.0,0.00029748,2]
[357042189,1743617431873,-16.83750001,0.00032361,2]
[357042190,1743617432051,-133.16249999,0.00032361,2]
[357042191,1743617432060,-191.55,0.00032646,2]
[357042192,1743617432072,-675.28750001,0.00032668,2]
[357042193,1743617432108,-377.70887099,0.00032668,2]
[357042194,1743617432117,-89.80043861,0.00034689,30]
[357042199,1743617437804,-4546.2991676,0.00034689,30]
[357042200,1743617437814,-10000.0,0.00034689,30]
[357042201,1743617437823,-7629.60689883,0.00034953,2]
[357042202,1743617437833,-166.22,0.00035,2]
[357042203,1743617437842,-450.0,0.00035,2]
[357042204,1743617437852,-177.46,0.00035172,2]
[357042205,1743617437861,-157.0,0.00036035,7]
[357042206,1743617437871,-157.0,0.00036035,7]
[357042207,1743617437880,-157.0,0.00036035,7]
[357042208,1743617437889,-157.0,0.00036035,7]
[357042209,1743617437899,-278.80795753,0.00036035,7]
[357042210,1743617437908,-168.63911419,0.00036035,7]
[357042211,1743617437917,-500.0,0.00037,2]
[357042212,1743617437928,-1071.0651129,0.000372,103]
[357042213,1743617437943,-398.30334895,0.0003726,2]
[357042426,1743617439999,-14.05383041,0.0003726,2]
[357042428,1743617440008,-465.40448274,0.000377,3]
[357042433,1743617440053,-334.30500016,0.000377,3]
[357042639,1743617444575,-299.2905171,0.000377,3]
[357042640,1743617444584,-191.55,0.00038443,2]
[357042641,1743617444594,-860.2594829,0.000385,5]
[357042645,1743617445690,-4693.7405171,0.000385,5]
[357042646,1743617445701,-1071.06511288,0.00038615,112]
[357042647,1743617445712,-297.35076289,0.00038724,2]
[357042648,1743617445723,-550.0,0.00039,2]
[357042649,1743617445733,-520.42934652,0.00039804,2]
[357042650,1743617445742,-159.461143,0.0004,3]
[357042651,1743617445752,-553.266,0.000405,58]
[357042652,1743617445762,-800.39,0.00040667,2]
[357042653,1743617445771,-253.2,0.00040667,2]
[357042654,1743617445781,-151.62,0.00040804,2]
[357042655,1743617445791,-888.31,0.00040804,2]
[357042656,1743617445800,-174.7,0.00040804,2]
[357042657,1743617445810,-600.0,0.00041,2]
[357042658,1743617445819,-156.56,0.00041626,30]
[357042659,1743617445833,-1071.06511288,0.00042377,120]
[357042660,1743617445842,-650.0,0.00043,2]
[357042661,1743617445957,-150.0,0.00043363,7]
[357042662,1743617445967,-2000.0,0.0004351,120]
[357042663,1743617445977,-150.89,0.00043756,2]
[357042664,1743617445988,-200.0,0.0004384,2]
[357042665,1743617445998,-191.55,0.00044239,2]
[357042666,1743617446007,-194.16,0.00044361,120]
[357042667,1743617446017,-2000.0,0.00044377,120]
[357042668,1743617446027,-1074.29,0.00044552,2]
[357042669,1743617446037,-159.461143,0.00044964,3]
[357042670,1743617446046,-700.0,0.00045,2]
[357042671,1743617446056,-23745.78877834,0.00045,2]
[357042672,1743617446066,-1000.0,0.0004535,2]
[357042673,1743617446075,-212.0,0.00046,90]
[357042674,1743617446085,-1071.06511288,0.00046138,120]
[357042675,1743617446095,-253.64,0.00046177,2]
[357042676,1743617446104,-150.0,0.00046188,2]
[357042677,1743617446114,-4604.6751027,0.00046468,2]
[357042678,1743617446124,-12507.9386338,0.00046468,2]
[357042679,1743617446133,-183.21,0.0004647,2]
[357042680,1743617446143,-200.0,0.0004647,2]
[357042681,1743617446153,-23900.0,0.0004647,2]
[357042682,1743617446163,-250.0,0.0004647,2]
[357042683,1743617446172,-164.8,0.0004647,2]
[357042684,1743617446182,-200.0,0.0004647,7]
[357042685,1743617446192,-200.0,0.0004647,7]
[357042686,1743617446202,-388.9,0.00046475,2]
[357042687,1743617446211,-388.9,0.00046488,2]
[357042688,1743617446221,-388.9,0.000465,2]
[357042689,1743617446230,-388.9,0.00046512,2]
[357042690,1743617446240,-388.9,0.00046524,2]
[357042691,1743617446251,-150.07,0.00046524,120]
[357042692,1743617446260,-388.9,0.00046536,2]
[357042693,1743617446269,-388.9,0.00046549,2]
[357042694,1743617446278,-388.9,0.00046561,2]
[357042695,1743617446288,-388.9,0.00046573,2]
[357042696,1743617446298,-1000.0,0.00046575,120]
[357042697,1743617446308,-388.9,0.00046585,2]
[357042698,1743617446317,-388.9,0.00046597,2]
[357042699,1743617446327,-388.9,0.0004661,2]
[357042700,1743617446337,-1171.54567535,0.00046614,2]
[357042701,1743617446365,-869.45432465,0.00046614,2]
[357042702,1743617446375,-1365.0,0.00046614,2]
[357042703,1743617446385,-573.0,0.00046614,2]
[357042704,1743617446395,-1275.0,0.00046614,2]
[357042705,1743617446404,-789.0,0.00046614,2]
[357042706,1743617446414,-4094.0,0.00046614,2]
[357042707,1743617446424,-909.0,0.00046614,2]
[357042708,1743617446434,-1434.0,0.00046614,2]
[357042709,1743617446443,-543.0,0.00046614,2]
[357042710,1743617446453,-388.9,0.00046622,2]
[357042711,1743617446462,-388.9,0.00046634,2]
[357042712,1743617446471,-388.9,0.00046646,2]
[357042713,1743617446480,-388.9,0.00046659,2]
[357042714,1743617446490,-388.9,0.00046671,2]
[357042715,1743617446499,-388.9,0.00046683,2]
[357042716,1743617446508,-157.89,0.00046731,2]
[357042717,1743617446517,-1074.29,0.00046816,2]
[357042718,1743617446527,-1000.0,0.00046849,120]
[357042719,1743617446536,-200.0,0.00046935,7]
[357042720,1743617446545,-623.11474726,0.00046984,10]
[357042721,1743617446554,-1000.0,0.00047,45]
[357042722,1743617446567,-750.0,0.00047,2]
[357042723,1743617446577,-1008.353,0.00047,120]
[357042724,1743617446586,-772.87883035,0.00047123,120]
[357042725,1743617446596,-200.0,0.00047404,7]
[357042726,1743617446605,-1000.0,0.000475,45]
[357042727,1743617446615,-500.0,0.000476,17]
[357042728,1743617446625,-1000.0,0.000477,17]
[357042729,1743617446634,-1600.0,0.000478,17]
[357042730,1743617446644,-200.0,0.00047878,7]
[357042731,1743617446653,-2100.0,0.000479,17]
[357042732,1743617446663,-151.37,0.00047913,120]
[357042733,1743617446672,-500.0,0.0004794,120]
[357042734,1743617446682,-1000.0,0.0004795,45]
[357042735,1743617446691,-167.12143618,0.00047953,15]
[357042736,1743617446700,-167.12143618,0.00048078,15]
[357042737,1743617446710,-46.67824431,0.0004818,2]
[357042754,1743617775109,619.61,0.00032,120]
[357042778,1743618189897,500.0,0.00034688,120]
[357042779,1743618198973,500.0,0.00034688,120]
[357042780,1743618226718,500.0,0.00032,120]
[357042781,1743618242452,498.21,0.00032,120]
[357042783,1743618320814,1217.75396529,9e-05,2]
[357042784,1743618337442,4659.08955752,8e-05,2]
[357042785,1743618337464,5012.96998225,8e-05,2]
[357042786,1743618362503,-184.39,0.00014999,2]
[357042787,1743618368162,1766.93443003,8e-05,2]
[357042788,1743618392373,-115.61,0.00014999,2]
[357042789,1743618392395,-37.30151117,0.00014999,2]
[357042790,1743618404974,-150.7605137,0.000149,2]
[357042791,1743618407537,-166.57654121,0.000149,2]
[357042792,1743618407562,-123.56218555,0.00014999,2]
[357042793,1743618407587,-195.29349909,0.00014999,2]
[357042794,1743618407609,-158.215662,0.00015,2]
[357042795,1743618407631,-322.51841958,0.00015,2]
[357042796,1743618407655,-9033.83369257,0.00015,2]
[357042797,1743618408992,-10000.0,0.00015,2]
[357042798,1743618410560,-10000.0,0.00015,2]
[357042799,1743618411559,-150.0,0.000149,2]
[357042800,1743618422663,-184.13930065,0.00014899,2]
[357042801,1743618433044,-115.86069935,0.00014899,2]
[357042802,1743618433069,-34.13930065,0.000149,2]
[357042803,1743618438144,-15901.19884286,0.000149,2]
[357042804,1743618438166,-180.83379984,0.000149,2]
[357042805,1743618438186,-500.0,0.00014973,2]
[357042806,1743618438207,-150.7605137,0.00014999,2]
[357042807,1743618438230,-5288.2934091,0.00015,2]
[357042808,1743618438995,-151.6824,0.000149,2]
[357042809,1743618441358,200.0,0.000145,5]
[357042810,1743618443466,500.0,0.000146,5]
[357042811,1743618445607,800.0,0.000147,5]
[357042812,1743618446146,-48.53495658,0.000149,2]
[357042813,1743618446170,-618.41355099,0.00015,2]
[357042814,1743618447717,1100.0,0.000148,5]
[357042815,1743618449828,1400.0,0.000149,5]
[357042816,1743618478426,3686.62851723,0.0001,2]
[357042817,1743618480533,268.08,0.0001499,3]
[357042818,1743618480967,600.0,0.000145,5]
[357042819,1743618483078,1200.0,0.000146,5]
[357042820,1743618485182,1800.0,0.000147,5]
[357042821,1743618487299,2400.0,0.000148,5]
[357042822,1743618489407,3000.0,0.000149,5]
[357042823,1743618519424,-250.0,0.000149,2]
[357042825,1743618535037,-93.66472369,0.000149,2]
[357042826,1743618535060,-86.22477631,0.000149,2]
[357042827,1743618546852,-125.33326031,0.000149,2]
[357042828,1743618546874,-27.01673969,0.000149,2]
[357042829,1743618550948,-200.0,0.000149,2]
[357042830,1743618553084,-10496.54202265,0.000149,2]
[357042831,1743618553105,-543.19125951,0.000149,2]
[357042832,1743618553125,-151.6824,0.00014999,2]
[357042833,1743618553145,-179.8895,0.00014999,2]
[357042834,1743618553166,-37167.95859784,0.00015,2]
[357042836,1743618560096,-200.21735657,0.000149,2]
[357042837,1743618560120,-8697.95999765,0.00015,2]
[357042845,1743618592988,-213.12966376,0.000149,2]
[357042846,1743618595159,-150.0,0.000149,2]
[357042847,1743618611523,-47.46386798,0.000149,2]
[357042848,1743618611550,-231.57166553,0.000149,2]
[357042863,1743618632108,-15.30284343,0.000149,2]
[357042864,1743618632118,-150.0,0.00014912,2]
[357042865,1743618632127,-275.186832,0.00014925,2]
[357042866,1743618632137,-98.4216023,0.00014999,2]
[357042867,1743618632219,-114.70806146,0.00014999,2]
[357042869,1743618632229,-150.0,0.00014999,2]
[357042870,1743618632238,-64878.21117704,0.00015,2]
[357042973,1743618637845,-512.47249055,0.00015,2]
[357042974,1743618637905,-2263.03318503,0.00015,2]
[357042975,1743618638030,-74.1058731,0.00015,2]
[357042976,1743618638042,-8651.25912,0.00015,2]
[357042977,1743618638053,-3556.02922756,0.00015,2]
[357042986,1743618640006,-1057.50924714,0.00015,2]
[357042989,1743618640628,-0.00548354,0.00015,2]
[357042998,1743618643027,-63599.48512005,0.00015,2]
[357043001,1743618644116,-158010.2725915,0.00015,2]
[357043010,1743618646224,-4222.42751081,0.00015,2]
[357043011,1743618646279,-467.051532,0.00015,2]
[357043012,1743618646340,-3681.51343144,0.00015,2]
[357043013,1743618682396,-211.5580366,0.000149,2]
[357043014,1743618682419,-88.4419634,0.000149,2]
[357043015,1743618711875,300.0,0.000145,5]
[357043016,1743618713975,600.0,0.000146,5]
[357043017,1743618716226,900.0,0.000147,5]
[357043018,1743618718226,1200.0,0.000148,5]
[357043019,1743618720361,1500.0,0.000149,5]
[357043020,1743618721148,1959.623883,0.00014825,2]
[357043021,1743618750848,846.11909068,0.000148,2]
[357043022,1743618769132,216.90140042,0.000148,2]
[357043042,1743618797948,266.108541,0.00014825,2]
[357043043,1743618822392,-164.58300598,0.000149,2]
[357043044,1743618822415,-85.41699402,0.000149,2]
[357043045,1743618844367,-150.0,0.00014899,2]
[357043046,1743618866003,-150.0,0.00014899,2]
[357043047,1743618866024,-126.14104258,0.000149,2]
[357043048,1743618866045,-8345.47910017,0.000149,2]
[357043049,1743618866066,-300.0,0.00014999,2]
[357043050,1743618866087,-2121.84369286,0.00014999,2]
[357043051,1743618866108,-295.46623442,0.00014999,2]
[357043052,1743618866132,-682139.06992997,0.00015,2]
[357043053,1743618878619,-161.2700506,0.000149,2]
[357043054,1743618890480,-150.0,0.000149,2]
[357043055,1743618895982,-150.0,0.000149,2]
[357043056,1743618952844,-7.8303681,0.000149,2]
[357043057,1743618952866,-386.24160088,0.000149,2]
[357043058,1743618952889,-339.28621283,0.000149,2]
[357043059,1743618952911,-11046.33583795,0.0001499,2]
[357043060,1743618952931,-150.0,0.00014999,2]
[357043061,1743618952953,-500.0,0.00014999,2]
[357043062,1743618952974,-500.0,0.00014999,2]
[357043063,1743618952995,-392.55563411,0.00014999,2]
[357043064,1743618953016,-197.45132369,0.00014999,2]
[357043065,1743618953038,-500.0,0.00014999,2]
[357043066,1743618953058,-345.10336766,0.00014999,2]
[357043067,1743618953078,-205.01148529,0.00014999,2]
[357043068,1743618953101,-352754.18416949,0.00015,2]